[Event "Late-Titled-Tuesday-Blitz-February-06-2024"]
[Site "Chess.com"]
[Date "2024.02.06"]
[Round "10"]
[White "dmitrijiIM"]
[Black "Szparu"]
[Result "1-0"]
[WhiteElo "2929"]
[BlackElo "2817"]
[TimeControl "180+1"]
[EndTime "15:53:36 PST"]
[Termination "dmitrijiIM won by resignation"]

1. d4 {[%clk 0:03:00.2]} 1... d5 {[%clk 0:02:59.3]} 2. c4 {[%clk 0:03:00.3]}
2... e6 {[%clk 0:02:59]} 3. cxd5 {[%clk 0:03:00]} 3... exd5 {[%clk 0:02:59.1]}
4. Nc3 {[%clk 0:03:00.9]} 4... c6 {[%clk 0:02:59]} 5. Bf4 {[%clk 0:03:01.2]}
5... Bf5 {[%clk 0:02:46.5]} 6. e3 {[%clk 0:02:57]} 6... Nf6 {[%clk 0:02:42]} 7.
f3 {[%clk 0:02:56.9]} 7... h5 {[%clk 0:02:39.4]} 8. Bd3 {[%clk 0:02:55.6]} 8...
Bxd3 {[%clk 0:02:37]} 9. Qxd3 {[%clk 0:02:56.5]} 9... Nbd7 {[%clk 0:02:37.2]}
10. Nge2 {[%clk 0:02:55.7]} 10... g6 {[%clk 0:02:26]} 11. O-O {[%clk 0:02:55.4]}
11... Bg7 {[%clk 0:02:25.1]} 12. e4 {[%clk 0:02:51.1]} 12... O-O {[%clk
0:02:24.8]} 13. e5 {[%clk 0:02:46.4]} 13... Ne8 {[%clk 0:02:20.6]} 14. Be3
{[%clk 0:02:35.6]} 14... Nc7 {[%clk 0:02:20.5]} 15. Rad1 {[%clk 0:02:17.8]}
15... Qe8 {[%clk 0:02:03.7]} 16. Kh1 {[%clk 0:02:11.9]} 16... f5 {[%clk
0:02:02.9]} 17. f4 {[%clk 0:01:47.4]} 17... Ne6 {[%clk 0:02:01.9]} 18. Ng1
{[%clk 0:01:46.9]} 18... a6 {[%clk 0:01:58.6]} 19. Nf3 {[%clk 0:01:46.6]} 19...
Kh7 {[%clk 0:01:58]} 20. g3 {[%clk 0:01:44.9]} 20... Qe7 {[%clk 0:01:54.8]} 21.
Kg2 {[%clk 0:01:44.7]} 21... Rfd8 {[%clk 0:01:54.8]} 22. h3 {[%clk 0:01:44.1]}
22... Kg8 {[%clk 0:01:50.2]} 23. Rh1 {[%clk 0:01:24.5]} 23... Ndf8 {[%clk
0:01:50.2]} 24. Rdf1 {[%clk 0:01:23.4]} 24... Kf7 {[%clk 0:01:49.6]} 25. g4
{[%clk 0:01:19.9]} 25... hxg4 {[%clk 0:01:47.6]} 26. hxg4 {[%clk 0:01:20.8]}
26... fxg4 {[%clk 0:01:48.5]} 27. Nh4 {[%clk 0:01:20.2]} 27... Ke8 {[%clk
0:01:47]} 28. Nxg6 {[%clk 0:01:18.9]} 28... Nxg6 {[%clk 0:00:45.7]} 29. Qxg6+
{[%clk 0:01:18.1]} 29... Qf7 {[%clk 0:00:46.6]} 30. Qxg4 {[%clk 0:01:08.5]}
30... c5 {[%clk 0:00:27.6]} 31. Rh7 {[%clk 0:01:01.4]} 31... cxd4 {[%clk
0:00:22.5]} 32. f5 {[%clk 0:00:58.7]} 32... dxe3 {[%clk 0:00:20.2]} 33. fxe6
{[%clk 0:00:58.5]} 1-0

[Event "Late-Titled-Tuesday-Blitz-February-06-2024"]
[Site "Chess.com"]
[Date "2024.02.06"]
[Round "10"]
[White "ninguno46"]
[Black "protectiago"]
[Result "1-0"]
[WhiteElo "2535"]
[BlackElo "2125"]
[TimeControl "180+1"]
[EndTime "15:53:40 PST"]
[Termination "ninguno46 won by resignation"]

1. e4 {[%clk 0:02:46.8]} 1... e5 {[%clk 0:02:59.8]} 2. Nf3 {[%clk 0:02:46.6]}
2... Nc6 {[%clk 0:02:59.5]} 3. d4 {[%clk 0:02:47.2]} 3... exd4 {[%clk
0:02:58.9]} 4. Bc4 {[%clk 0:02:47.4]} 4... Bc5 {[%clk 0:02:55]} 5. c3 {[%clk
0:02:47.1]} 5... Nf6 {[%clk 0:02:53.9]} 6. e5 {[%clk 0:02:45.8]} 6... d5 {[%clk
0:02:53.4]} 7. Bb5 {[%clk 0:02:44.6]} 7... Ne4 {[%clk 0:02:50.7]} 8. cxd4 {[%clk
0:02:44.8]} 8... Bb4+ {[%clk 0:02:50.9]} 9. Nc3 {[%clk 0:02:42.4]} 9... O-O
{[%clk 0:02:43]} 10. Bd2 {[%clk 0:02:37.1]} 10... Nxd2 {[%clk 0:02:22.5]} 11.
Qxd2 {[%clk 0:02:36.6]} 11... Bf5 {[%clk 0:02:14.9]} 12. O-O {[%clk 0:02:31.9]}
12... Be7 {[%clk 0:01:40.8]} 13. Bd3 {[%clk 0:02:28.6]} 13... Bg6 {[%clk
0:01:30.9]} 14. Bxg6 {[%clk 0:02:27.5]} 14... hxg6 {[%clk 0:01:31]} 15. Qf4
{[%clk 0:02:24.4]} 15... Qd7 {[%clk 0:01:24.1]} 16. h4 {[%clk 0:02:23.7]} 16...
Nd8 {[%clk 0:01:24.3]} 17. Qg3 {[%clk 0:02:20.3]} 17... Ne6 {[%clk 0:01:24.2]}
18. Rad1 {[%clk 0:02:19.6]} 18... a5 {[%clk 0:01:08.8]} 19. Qh3 {[%clk
0:02:13.1]} 19... Qd8 {[%clk 0:00:52.3]} 20. h5 {[%clk 0:02:12.4]} 20... gxh5
{[%clk 0:00:50.9]} 21. Qxh5 {[%clk 0:02:12]} 21... Ra6 {[%clk 0:00:51.1]} 22. g3
{[%clk 0:02:10.9]} 22... Ng5 {[%clk 0:00:41.8]} 23. Nxg5 {[%clk 0:02:04.3]}
23... Bxg5 {[%clk 0:00:41.5]} 24. Kg2 {[%clk 0:02:04.7]} 24... Rh6 {[%clk
0:00:40.9]} 25. Qf3 {[%clk 0:02:03.8]} 25... Qd7 {[%clk 0:00:41.1]} 26. Rh1
{[%clk 0:02:03.2]} 26... c6 {[%clk 0:00:34.1]} 27. Rxh6 {[%clk 0:02:02.5]} 27...
Bxh6 {[%clk 0:00:32.7]} 28. Qh5 {[%clk 0:02:01.5]} 28... f6 {[%clk 0:00:28.8]}
29. f4 {[%clk 0:01:57.7]} 29... fxe5 {[%clk 0:00:25.4]} 30. dxe5 {[%clk
0:01:55.3]} 30... Rf5 {[%clk 0:00:14.5]} 31. Qg4 {[%clk 0:01:51.1]} 31... Qf7
{[%clk 0:00:14.2]} 32. Ne2 {[%clk 0:01:49.8]} 32... c5 {[%clk 0:00:09]} 33. Qf3
{[%clk 0:01:46.8]} 33... d4 {[%clk 0:00:08.1]} 34. b3 {[%clk 0:01:40]} 34... g5
{[%clk 0:00:07.9]} 35. g4 {[%clk 0:01:36.9]} 35... Rxf4 {[%clk 0:00:07.4]} 36.
Nxf4 {[%clk 0:01:35.8]} 36... Qxf4 {[%clk 0:00:06.6]} 37. Qxf4 {[%clk
0:01:35.6]} 37... gxf4 {[%clk 0:00:07]} 38. Kf3 {[%clk 0:01:36.2]} 38... Kf7
{[%clk 0:00:06.3]} 39. Ke4 {[%clk 0:01:36.4]} 39... Ke6 {[%clk 0:00:06.3]} 40.
a4 {[%clk 0:01:34.3]} 40... Bg7 {[%clk 0:00:05.7]} 41. Rh1 {[%clk 0:01:32.6]}
41... Bxe5 {[%clk 0:00:05.5]} 42. Rh6+ {[%clk 0:01:32.7]} 42... Bf6 {[%clk
0:00:05.9]} 43. g5 {[%clk 0:01:33.1]} 1-0

[Event "Late-Titled-Tuesday-Blitz-February-06-2024"]
[Site "Chess.com"]
[Date "2024.02.06"]
[Round "10"]
[White "Arystanner"]
[Black "djano"]
[Result "1-0"]
[WhiteElo "2855"]
[BlackElo "2639"]
[TimeControl "180+1"]
[EndTime "15:53:44 PST"]
[Termination "Arystanner won by resignation"]

1. e4 {[%clk 0:02:56.3]} 1... c5 {[%clk 0:02:59.3]} 2. Nf3 {[%clk 0:02:56.6]}
2... Nc6 {[%clk 0:02:58.9]} 3. Bb5 {[%clk 0:02:56.7]} 3... e5 {[%clk 0:02:58.8]}
4. O-O {[%clk 0:02:40.8]} 4... Nge7 {[%clk 0:02:58.7]} 5. Bc4 {[%clk 0:02:40.4]}
5... h6 {[%clk 0:02:39.8]} 6. c3 {[%clk 0:02:37.8]} 6... g6 {[%clk 0:02:39.8]}
7. Qb3 {[%clk 0:02:37.4]} 7... Rh7 {[%clk 0:02:12.5]} 8. Qc2 {[%clk 0:02:37.8]}
8... d6 {[%clk 0:02:07.1]} 9. h3 {[%clk 0:02:34.9]} 9... Be6 {[%clk 0:02:00.9]}
10. Bxe6 {[%clk 0:02:34.9]} 10... fxe6 {[%clk 0:02:01.8]} 11. d4 {[%clk
0:02:35.6]} 11... cxd4 {[%clk 0:01:49.8]} 12. cxd4 {[%clk 0:02:36.5]} 12... exd4
{[%clk 0:01:50.4]} 13. Nbd2 {[%clk 0:02:32.2]} 13... e5 {[%clk 0:01:50.1]} 14.
Nc4 {[%clk 0:02:30.3]} 14... Qd7 {[%clk 0:01:37.2]} 15. Bd2 {[%clk 0:02:24.4]}
15... g5 {[%clk 0:01:31.4]} 16. b4 {[%clk 0:02:19.7]} 16... Rg7 {[%clk
0:01:26.5]} 17. b5 {[%clk 0:02:17.7]} 17... Nd8 {[%clk 0:01:26.8]} 18. Bb4
{[%clk 0:02:16.7]} 18... Nf7 {[%clk 0:01:23.7]} 19. Nh2 {[%clk 0:02:11.7]} 19...
h5 {[%clk 0:01:22.4]} 20. a4 {[%clk 0:02:06.4]} 20... g4 {[%clk 0:01:22.2]} 21.
hxg4 {[%clk 0:01:56.1]} 21... hxg4 {[%clk 0:01:23.1]} 22. Rac1 {[%clk
0:01:45.3]} 22... Qe6 {[%clk 0:01:16.1]} 23. f4 {[%clk 0:01:43.2]} 23... g3
{[%clk 0:01:15.3]} 24. Nf3 {[%clk 0:01:33]} 24... Rh7 {[%clk 0:01:11.4]} 25. Ng5
{[%clk 0:01:20.1]} 25... Qh6 {[%clk 0:00:44.9]} 26. Nh3 {[%clk 0:01:20.2]} 26...
Ng6 {[%clk 0:00:25.1]} 27. fxe5 {[%clk 0:01:11.1]} 27... Ngxe5 {[%clk
0:00:25.3]} 28. Nxe5 {[%clk 0:01:07.9]} 28... dxe5 {[%clk 0:00:24.1]} 29. Bxf8
{[%clk 0:01:04.5]} 29... Kxf8 {[%clk 0:00:21]} 30. Rf3 {[%clk 0:00:58.7]} 30...
d3 {[%clk 0:00:14.7]} 31. Qc5+ {[%clk 0:00:57.3]} 31... Qd6 {[%clk 0:00:12.3]}
32. Qxd6+ {[%clk 0:00:50.7]} 1-0

[Event "Late-Titled-Tuesday-Blitz-February-06-2024"]
[Site "Chess.com"]
[Date "2024.02.06"]
[Round "10"]
[White "nikitadovbnya2008"]
[Black "JaackCamel"]
[Result "1-0"]
[WhiteElo "2339"]
[BlackElo "2203"]
[TimeControl "180+1"]
[EndTime "15:53:44 PST"]
[Termination "nikitadovbnya2008 won by resignation"]

1. d4 {[%clk 0:03:00.9]} 1... d5 {[%clk 0:02:59.2]} 2. c4 {[%clk 0:03:01.2]}
2... e6 {[%clk 0:02:58.6]} 3. Nc3 {[%clk 0:03:00.2]} 3... c6 {[%clk 0:02:58.4]}
4. e3 {[%clk 0:02:59]} 4... Nf6 {[%clk 0:02:57]} 5. Nf3 {[%clk 0:02:59]} 5...
Nbd7 {[%clk 0:02:56.6]} 6. Bd3 {[%clk 0:02:59.5]} 6... dxc4 {[%clk 0:02:56.4]}
7. Bxc4 {[%clk 0:03:00.4]} 7... b5 {[%clk 0:02:56.3]} 8. Bd3 {[%clk 0:03:01]}
8... a6 {[%clk 0:02:56.4]} 9. e4 {[%clk 0:03:00.9]} 9... c5 {[%clk 0:02:56.3]}
10. e5 {[%clk 0:03:01.2]} 10... cxd4 {[%clk 0:02:55.5]} 11. Nxb5 {[%clk
0:03:01.6]} 11... axb5 {[%clk 0:02:50.8]} 12. exf6 {[%clk 0:03:01.7]} 12... Nxf6
{[%clk 0:02:46.4]} 13. Bxb5+ {[%clk 0:02:24.9]} 13... Bd7 {[%clk 0:02:45.5]} 14.
Bxd7+ {[%clk 0:02:23.8]} 14... Qxd7 {[%clk 0:02:42.9]} 15. Qxd4 {[%clk
0:02:23.7]} 15... Qxd4 {[%clk 0:02:41.3]} 16. Nxd4 {[%clk 0:02:22.8]} 16... Bb4+
{[%clk 0:02:38]} 17. Ke2 {[%clk 0:02:22.2]} 17... O-O {[%clk 0:02:33.6]} 18. Be3
{[%clk 0:02:19.3]} 18... Nd5 {[%clk 0:02:15.7]} 19. a3 {[%clk 0:02:19.2]} 19...
Be7 {[%clk 0:02:09]} 20. Rab1 {[%clk 0:02:16.5]} 20... Bf6 {[%clk 0:02:04.9]}
21. Rhc1 {[%clk 0:02:14]} 21... Rfc8 {[%clk 0:02:01.2]} 22. Rxc8+ {[%clk
0:02:08.4]} 22... Rxc8 {[%clk 0:02:00.3]} 23. Nb5 {[%clk 0:02:05.1]} 23... Rc2+
{[%clk 0:01:54.7]} 24. Kd3 {[%clk 0:01:59]} 24... Rxb2 {[%clk 0:01:48.4]} 25.
Rxb2 {[%clk 0:01:58.6]} 25... Bxb2 {[%clk 0:01:48]} 26. a4 {[%clk 0:01:55.1]}
26... Kf8 {[%clk 0:01:44.1]} 27. a5 {[%clk 0:01:43.9]} 27... Ke8 {[%clk
0:01:19]} 28. Kc4 {[%clk 0:01:29.8]} 28... Kd7 {[%clk 0:01:13.7]} 29. a6 {[%clk
0:01:25.6]} 29... Kc6 {[%clk 0:01:04.9]} 30. Nd4+ {[%clk 0:01:17.1]} 30... Kb6
{[%clk 0:00:51.8]} 31. Nxe6+ {[%clk 0:01:16.2]} 31... Kxa6 {[%clk 0:00:51.7]}
32. Kxd5 {[%clk 0:01:11.1]} 32... fxe6+ {[%clk 0:00:51.2]} 33. Kxe6 {[%clk
0:01:11]} 33... Kb5 {[%clk 0:00:48.2]} 34. Bf4 {[%clk 0:01:03.2]} 34... Kc6
{[%clk 0:00:47.6]} 35. Be5 {[%clk 0:01:03.1]} 35... Ba3 {[%clk 0:00:34.7]} 36.
Bxg7 {[%clk 0:01:01.2]} 36... Bc5 {[%clk 0:00:34.2]} 37. f4 {[%clk 0:00:59.9]}
37... Kc7 {[%clk 0:00:31]} 38. h4 {[%clk 0:00:59.6]} 38... Kd8 {[%clk
0:00:28.7]} 39. f5 {[%clk 0:00:58]} 39... Ke8 {[%clk 0:00:29]} 40. f6 {[%clk
0:00:57.4]} 1-0

[Event "Late-Titled-Tuesday-Blitz-February-06-2024"]
[Site "Chess.com"]
[Date "2024.02.06"]
[Round "10"]
[White "WilsonPalencia21"]
[Black "TheAlienParty"]
[Result "1-0"]
[WhiteElo "2599"]
[BlackElo "2402"]
[TimeControl "180+1"]
[EndTime "15:53:52 PST"]
[Termination "WilsonPalencia21 won by resignation"]

1. d4 {[%clk 0:02:54.4]} 1... Nf6 {[%clk 0:02:59.2]} 2. c4 {[%clk 0:02:49.6]}
2... e6 {[%clk 0:02:56.6]} 3. Nf3 {[%clk 0:02:49.7]} 3... d5 {[%clk 0:02:55.9]}
4. Nc3 {[%clk 0:02:49.5]} 4... Bb4 {[%clk 0:02:55.1]} 5. Bg5 {[%clk 0:02:49.8]}
5... h6 {[%clk 0:02:53.4]} 6. Bxf6 {[%clk 0:02:49.7]} 6... Qxf6 {[%clk
0:02:51.6]} 7. Qa4+ {[%clk 0:02:50.6]} 7... Nc6 {[%clk 0:02:51.1]} 8. e3 {[%clk
0:02:50.9]} 8... Bd7 {[%clk 0:02:47.2]} 9. Qc2 {[%clk 0:02:50.5]} 9... Bxc3+
{[%clk 0:02:30.3]} 10. bxc3 {[%clk 0:02:49.7]} 10... O-O {[%clk 0:02:27.2]} 11.
cxd5 {[%clk 0:02:49.7]} 11... exd5 {[%clk 0:02:26.9]} 12. Bb5 {[%clk 0:02:49.9]}
12... Bf5 {[%clk 0:02:22.6]} 13. Qb3 {[%clk 0:02:44.6]} 13... Rfd8 {[%clk
0:02:19.9]} 14. Bxc6 {[%clk 0:02:43.1]} 14... Qxc6 {[%clk 0:02:18.3]} 15. O-O
{[%clk 0:02:41.4]} 15... b6 {[%clk 0:02:09.6]} 16. Ne5 {[%clk 0:02:40.5]} 16...
Qe6 {[%clk 0:02:08]} 17. Rfe1 {[%clk 0:02:31.1]} 17... c5 {[%clk 0:02:07.1]} 18.
f4 {[%clk 0:02:28.3]} 18... c4 {[%clk 0:02:06.3]} 19. Qb2 {[%clk 0:02:23.7]}
19... Be4 {[%clk 0:02:05.8]} 20. h3 {[%clk 0:02:22.3]} 20... Kh7 {[%clk
0:02:04.5]} 21. Kh2 {[%clk 0:02:22.1]} 21... g5 {[%clk 0:02:03]} 22. fxg5 {[%clk
0:02:16.9]} 22... hxg5 {[%clk 0:02:02.1]} 23. Rf1 {[%clk 0:02:17.1]} 23... f6
{[%clk 0:02:00.9]} 24. Ng4 {[%clk 0:02:16.8]} 24... f5 {[%clk 0:01:58.7]} 25.
Ne5 {[%clk 0:02:16.3]} 25... Kg7 {[%clk 0:01:57.6]} 26. g4 {[%clk 0:02:06.6]}
26... Rf8 {[%clk 0:01:54.2]} 27. Rf2 {[%clk 0:01:56.8]} 27... fxg4 {[%clk
0:01:48.8]} 28. Nxg4 {[%clk 0:01:50]} 28... Qd6+ {[%clk 0:01:37.7]} 29. Ne5
{[%clk 0:01:47.7]} 29... Rf6 {[%clk 0:01:29.3]} 30. Rg1 {[%clk 0:01:36.4]} 30...
Raf8 {[%clk 0:01:16.7]} 31. Rxg5+ {[%clk 0:01:29.2]} 31... Kh6 {[%clk 0:01:14]}
32. Rxf6+ {[%clk 0:01:26.3]} 32... Rxf6 {[%clk 0:01:12.9]} 33. Rg1 {[%clk
0:00:58.2]} 33... Qf8 {[%clk 0:01:11.2]} 34. Ng4+ {[%clk 0:00:56.7]} 34... Kh7
{[%clk 0:01:10.5]} 35. Nxf6+ {[%clk 0:00:55.6]} 35... Qxf6 {[%clk 0:01:10.3]}
36. Qe2 {[%clk 0:00:54.9]} 36... Qd6+ {[%clk 0:01:09.1]} 37. Rg3 {[%clk
0:00:53.9]} 37... b5 {[%clk 0:01:08.5]} 38. Qg4 {[%clk 0:00:53.5]} 38... Bg6
{[%clk 0:01:03.3]} 39. Qf4 {[%clk 0:00:46.9]} 39... Qxf4 {[%clk 0:01:02.2]} 40.
exf4 {[%clk 0:00:46.9]} 40... a5 {[%clk 0:01:02]} 41. a3 {[%clk 0:00:46.3]}
41... b4 {[%clk 0:00:57.1]} 42. cxb4 {[%clk 0:00:44.8]} 42... axb4 {[%clk
0:00:56.9]} 43. axb4 {[%clk 0:00:45]} 43... Bd3 {[%clk 0:00:54.7]} 44. b5 {[%clk
0:00:43.6]} 44... c3 {[%clk 0:00:54]} 45. Rxd3 {[%clk 0:00:43.1]} 45... c2
{[%clk 0:00:53.9]} 46. Rc3 {[%clk 0:00:43]} 1-0

[Event "Late-Titled-Tuesday-Blitz-February-06-2024"]
[Site "Chess.com"]
[Date "2024.02.06"]
[Round "10"]
[White "Genghis_K"]
[Black "Oleksandr_Bortnyk"]
[Result "0-1"]
[WhiteElo "2904"]
[BlackElo "3072"]
[TimeControl "180+1"]
[EndTime "15:53:58 PST"]
[Termination "Oleksandr_Bortnyk won on time"]

1. e4 {[%clk 0:02:38.6]} 1... Nf6 {[%clk 0:03:00]} 2. e5 {[%clk 0:02:39]} 2...
Nd5 {[%clk 0:02:59.9]} 3. d4 {[%clk 0:02:39.7]} 3... d6 {[%clk 0:03:00.5]} 4. c4
{[%clk 0:02:40.4]} 4... Nb6 {[%clk 0:03:01]} 5. exd6 {[%clk 0:02:41.2]} 5...
exd6 {[%clk 0:03:01.9]} 6. h3 {[%clk 0:02:39.1]} 6... Be7 {[%clk 0:03:02.5]} 7.
Nf3 {[%clk 0:02:39.4]} 7... O-O {[%clk 0:03:02.7]} 8. Bd3 {[%clk 0:02:40]} 8...
Nc6 {[%clk 0:03:03]} 9. Nc3 {[%clk 0:02:39.5]} 9... Bf6 {[%clk 0:03:02.7]} 10.
O-O {[%clk 0:02:40.2]} 10... Nb4 {[%clk 0:02:58.7]} 11. Bb1 {[%clk 0:02:35.4]}
11... Re8 {[%clk 0:02:51.9]} 12. Ne4 {[%clk 0:02:22.5]} 12... Bf5 {[%clk
0:02:45.8]} 13. Nxf6+ {[%clk 0:02:04.7]} 13... Qxf6 {[%clk 0:02:46.7]} 14. b3
{[%clk 0:01:55.8]} 14... Bxb1 {[%clk 0:02:41.8]} 15. Rxb1 {[%clk 0:01:56.3]}
15... a5 {[%clk 0:02:32.4]} 16. Qd2 {[%clk 0:01:41.2]} 16... Qf5 {[%clk
0:02:29.5]} 17. Ba3 {[%clk 0:01:36.3]} 17... Nd3 {[%clk 0:02:23.7]} 18. Nh4
{[%clk 0:01:02.9]} 18... Qe4 {[%clk 0:02:19.8]} 19. Rbd1 {[%clk 0:01:00.3]}
19... Nf4 {[%clk 0:02:13.2]} 20. g3 {[%clk 0:00:54.7]} 20... Nxh3+ {[%clk
0:01:37.3]} 21. Kh2 {[%clk 0:00:54.6]} 21... Qe6 {[%clk 0:01:35.6]} 22. d5
{[%clk 0:00:44.2]} 22... Qd7 {[%clk 0:01:16.9]} 23. Bb2 {[%clk 0:00:33.6]} 23...
f6 {[%clk 0:01:17.3]} 24. f4 {[%clk 0:00:27.9]} 24... Qg4 {[%clk 0:01:17.5]} 25.
Rde1 {[%clk 0:00:25.6]} 25... Nd7 {[%clk 0:01:14.6]} 26. Qg2 {[%clk 0:00:23.8]}
26... Rxe1 {[%clk 0:01:13.5]} 27. Rxe1 {[%clk 0:00:16.5]} 27... Nxf4 {[%clk
0:01:11.5]} 28. Qf1 {[%clk 0:00:13.1]} 28... Nh5 {[%clk 0:01:04.9]} 29. Nf5
{[%clk 0:00:13.7]} 29... Ne5 {[%clk 0:01:01]} 30. Bxe5 {[%clk 0:00:14.2]} 30...
fxe5 {[%clk 0:00:59]} 31. Ne7+ {[%clk 0:00:10]} 31... Kh8 {[%clk 0:00:59]} 32.
Re3 {[%clk 0:00:10.3]} 32... Qg5 {[%clk 0:00:52.5]} 33. Nf5 {[%clk 0:00:04.5]}
33... g6 {[%clk 0:00:51.5]} 34. g4 {[%clk 0:00:02.1]} 34... gxf5 {[%clk
0:00:49.4]} 0-1

[Event "Late-Titled-Tuesday-Blitz-February-06-2024"]
[Site "Chess.com"]
[Date "2024.02.06"]
[Round "10"]
[White "crazy_but_lazy"]
[Black "Jarrahi2452"]
[Result "0-1"]
[WhiteElo "2612"]
[BlackElo "2811"]
[TimeControl "180+1"]
[EndTime "15:54:01 PST"]
[Termination "Jarrahi2452 won on time"]

1. d4 {[%clk 0:03:00.9]} 1... d5 {[%clk 0:02:59.7]} 2. c4 {[%clk 0:02:59.8]}
2... c6 {[%clk 0:02:59.7]} 3. cxd5 {[%clk 0:02:56.6]} 3... cxd5 {[%clk
0:02:59.7]} 4. Bf4 {[%clk 0:02:57.3]} 4... Nf6 {[%clk 0:02:56.3]} 5. e3 {[%clk
0:02:57.7]} 5... Nc6 {[%clk 0:02:55.6]} 6. Nc3 {[%clk 0:02:58]} 6... Bf5 {[%clk
0:02:54.6]} 7. Be2 {[%clk 0:02:52.9]} 7... Rc8 {[%clk 0:02:49.2]} 8. Nf3 {[%clk
0:02:52.1]} 8... e6 {[%clk 0:02:47.8]} 9. O-O {[%clk 0:02:52.4]} 9... Bd6 {[%clk
0:02:44.4]} 10. Bxd6 {[%clk 0:02:52.2]} 10... Qxd6 {[%clk 0:02:45.3]} 11. Rc1
{[%clk 0:02:52.6]} 11... a6 {[%clk 0:02:42.5]} 12. Na4 {[%clk 0:02:50.4]} 12...
O-O {[%clk 0:02:41.4]} 13. a3 {[%clk 0:02:46.3]} 13... Ne4 {[%clk 0:02:35]} 14.
Nc5 {[%clk 0:02:45.9]} 14... Nxc5 {[%clk 0:02:33.6]} 15. Rxc5 {[%clk 0:02:45.2]}
15... Ne7 {[%clk 0:02:26.2]} 16. b4 {[%clk 0:02:42]} 16... b6 {[%clk 0:02:19.4]}
17. Rxc8 {[%clk 0:02:08.3]} 17... Rxc8 {[%clk 0:02:20.3]} 18. Bxa6 {[%clk
0:02:08.8]} 18... Ra8 {[%clk 0:02:20.1]} 19. Qe2 {[%clk 0:02:06.6]} 19... Bg4
{[%clk 0:02:14.2]} 20. Rc1 {[%clk 0:02:02.2]} 20... Bxf3 {[%clk 0:02:08.2]} 21.
gxf3 {[%clk 0:02:03.1]} 21... Nf5 {[%clk 0:02:02.8]} 22. Bd3 {[%clk 0:01:25.3]}
22... Nh4 {[%clk 0:02:00.8]} 23. Rc3 {[%clk 0:01:24.7]} 23... e5 {[%clk
0:01:28.2]} 24. Qc2 {[%clk 0:00:33.1]} 24... Rd8 {[%clk 0:01:26.6]} 25. Rc8
{[%clk 0:00:16.7]} 25... Nxf3+ {[%clk 0:01:17.8]} 26. Kf1 {[%clk 0:00:17.2]}
26... e4 {[%clk 0:01:14.5]} 27. Be2 {[%clk 0:00:12.3]} 27... g6 {[%clk
0:01:02.7]} 28. Bxf3 {[%clk 0:00:10.2]} 28... exf3 {[%clk 0:01:02.3]} 29. Rxd8+
{[%clk 0:00:08.7]} 29... Qxd8 {[%clk 0:01:02]} 30. Qc6 {[%clk 0:00:05.7]} 30...
Qg5 {[%clk 0:00:57.8]} 31. Qc8+ {[%clk 0:00:02.4]} 31... Kg7 {[%clk 0:00:57.8]}
32. Qh3 {[%clk 0:00:03.1]} 32... Qf6 {[%clk 0:00:54.8]} 33. Qg4 {[%clk
0:00:02.2]} 33... h5 {[%clk 0:00:51.9]} 0-1

[Event "Late-Titled-Tuesday-Blitz-February-06-2024"]
[Site "Chess.com"]
[Date "2024.02.06"]
[Round "10"]
[White "AryanTari"]
[Black "LiemLe"]
[Result "1-0"]
[WhiteElo "2925"]
[BlackElo "3017"]
[TimeControl "180+1"]
[EndTime "15:54:03 PST"]
[Termination "AryanTari won on time"]

1. e4 {[%clk 0:03:00.9]} 1... e5 {[%clk 0:03:00]} 2. Nf3 {[%clk 0:03:00.6]} 2...
Nc6 {[%clk 0:03:00.7]} 3. d4 {[%clk 0:02:58.7]} 3... exd4 {[%clk 0:02:59.8]} 4.
Nxd4 {[%clk 0:02:59.6]} 4... Nf6 {[%clk 0:03:00.4]} 5. Nxc6 {[%clk 0:03:00]}
5... bxc6 {[%clk 0:03:00.6]} 6. Nd2 {[%clk 0:03:00.4]} 6... Bc5 {[%clk
0:02:55.6]} 7. Nb3 {[%clk 0:02:59.6]} 7... Bb6 {[%clk 0:02:35.7]} 8. e5 {[%clk
0:02:59.3]} 8... Qe7 {[%clk 0:02:34.7]} 9. Qe2 {[%clk 0:02:57.4]} 9... Nd5
{[%clk 0:02:26.3]} 10. h4 {[%clk 0:02:41.2]} 10... O-O {[%clk 0:02:20.9]} 11.
Bg5 {[%clk 0:02:33.8]} 11... f6 {[%clk 0:02:14]} 12. exf6 {[%clk 0:02:34]} 12...
Qxe2+ {[%clk 0:02:13.4]} 13. Bxe2 {[%clk 0:02:33.4]} 13... Nxf6 {[%clk
0:02:12.7]} 14. O-O {[%clk 0:01:34.2]} 14... Ne4 {[%clk 0:02:02.4]} 15. Be3
{[%clk 0:01:34.2]} 15... Bxe3 {[%clk 0:02:00.6]} 16. fxe3 {[%clk 0:01:35.1]}
16... Nf6 {[%clk 0:01:36.9]} 17. Nd4 {[%clk 0:01:33.8]} 17... Re8 {[%clk
0:01:23.6]} 18. Rae1 {[%clk 0:01:29.4]} 18... Rb8 {[%clk 0:01:08.6]} 19. b3
{[%clk 0:01:11.5]} 19... c5 {[%clk 0:01:01.6]} 20. Nf5 {[%clk 0:01:08.6]} 20...
g6 {[%clk 0:00:33.8]} 21. Nh6+ {[%clk 0:00:53.9]} 21... Kg7 {[%clk 0:00:33.7]}
22. g4 {[%clk 0:00:53.8]} 22... Kxh6 {[%clk 0:00:25.5]} 23. Rxf6 {[%clk
0:00:49.3]} 23... Kg7 {[%clk 0:00:19.2]} 24. Ref1 {[%clk 0:00:49.7]} 24... d5
{[%clk 0:00:03.2]} 25. Rf7+ {[%clk 0:00:47.3]} 25... Kg8 {[%clk 0:00:03.7]} 26.
Rxc7 {[%clk 0:00:47.1]} 26... Rxe3 {[%clk 0:00:03.9]} 27. Bf3 {[%clk 0:00:45.1]}
27... Be6 {[%clk 0:00:03.5]} 28. Rxc5 {[%clk 0:00:40.8]} 28... Rd8 {[%clk
0:00:01.2]} 29. Rc7 {[%clk 0:00:30.8]} 1-0